Body Name,Body,Service Division,Expense Type,Date Paid,Transaction Ref,Invoice Amount,Supplier Name
East Lindsey District Council,http://statistics.data.gov.uk/id/local-authority/32UC,AD Chief Finance Officer,Business Rates - Share of Income Lincolnshire County Council,01/03/2024,30031909,"390,446.00 ",Lincolnshire County Council
East Lindsey District Council,http://statistics.data.gov.uk/id/local-authority/32UC,AD Chief Finance Officer,Council Tax Precept - Lincolnshire County Council,01/03/2024,30031909,"7,032,765.65 ",Lincolnshire County Council
East Lindsey District Council,http://statistics.data.gov.uk/id/local-authority/32UC,AD Chief Finance Officer,Council Tax Precept - Lincolnshire Police,01/03/2024,30031906,"1,362,139.68 ",Local Police Authority Fund Account
East Lindsey District Council,http://statistics.data.gov.uk/id/local-authority/32UC,AD Chief Finance Officer,Other Miscellaneous Expenses,04/03/2024,30032154,"58,501.22 ",Lloyds Bank Plc
East Lindsey District Council,http://statistics.data.gov.uk/id/local-authority/32UC,AD Capital - Strategic Growth and Development,Grants and Contributions to Outside Bodies - No Service Received,05/03/2024,30031273,"9,450.00 ",Tong Engineering Ltd
East Lindsey District Council,http://statistics.data.gov.uk/id/local-authority/32UC,Information Technology,Computer Hardware Purchase,05/03/2024,30031271,"8,598.23 ",Public Sector Partnership Services Ltd
East Lindsey District Council,http://statistics.data.gov.uk/id/local-authority/32UC,Information Technology,Computer Software Licence Costs,05/03/2024,30031840,"9,615.79 ",Groupe Sharegate Inc
East Lindsey District Council,http://statistics.data.gov.uk/id/local-authority/32UC,Neighbourhoods,Agency Staff,05/03/2024,30031309,"3,525.36 ",The Workshop (Wisbech) Ltd
East Lindsey District Council,http://statistics.data.gov.uk/id/local-authority/32UC,Neighbourhoods,Agency Staff,05/03/2024,30031310,"2,814.57 ",The Workshop (Wisbech) Ltd
East Lindsey District Council,http://statistics.data.gov.uk/id/local-authority/32UC,Neighbourhoods,Professional and Contractors Fees,05/03/2024,30031298,900.00 ,Sid Dennis and Sons Ltd
East Lindsey District Council,http://statistics.data.gov.uk/id/local-authority/32UC,Property,Buildings Maintenance - Programmed,05/03/2024,30031233,260.00 ,Lincolnshire Roller Shutters Ltd
East Lindsey District Council,http://statistics.data.gov.uk/id/local-authority/32UC,Property,Buildings Maintenance - Programmed,05/03/2024,30031234,520.00 ,Lincolnshire Roller Shutters Ltd
East Lindsey District Council,http://statistics.data.gov.uk/id/local-authority/32UC,Property,Grounds Maintenance Contract (External),05/03/2024,30031287,300.00 ,Wold Tree Works Limited
East Lindsey District Council,http://statistics.data.gov.uk/id/local-authority/32UC,Property,Grounds Maintenance Contract (External),05/03/2024,30031288,350.00 ,Wold Tree Works Limited
East Lindsey District Council,http://statistics.data.gov.uk/id/local-authority/32UC,Property,Professional and Contractors Fees,05/03/2024,30031335,"1,305.00 ",M.A.P Security Solutions Ltd
East Lindsey District Council,http://statistics.data.gov.uk/id/local-authority/32UC,Waste,Maintenance,05/03/2024,30031293,"4,600.00 ",Cat Lane Vans Ltd
East Lindsey District Council,http://statistics.data.gov.uk/id/local-authority/32UC,Waste,Professional and Contractors Fees,05/03/2024,30031364,240.62 ,Phs Group
East Lindsey District Council,http://statistics.data.gov.uk/id/local-authority/32UC,Waste,Workshop Parts,05/03/2024,30031124,"1,370.00 ",�Personal Information Redacted�
East Lindsey District Council,http://statistics.data.gov.uk/id/local-authority/32UC,Waste,Workshop Parts,05/03/2024,30031125,860.00 ,�Personal Information Redacted�
East Lindsey District Council,http://statistics.data.gov.uk/id/local-authority/32UC,AD Capital - Regulation,Professional and Contractors Fees,07/03/2024,30030578,"2,270.81 ",Lincolnshire County Council
East Lindsey District Council,http://statistics.data.gov.uk/id/local-authority/32UC,AD Capital - Strategic Growth and Development,Grants and Contributions to Outside Bodies - No Service Received,07/03/2024,30031272,"10,357.81 ",Seacroft Golf Club
East Lindsey District Council,http://statistics.data.gov.uk/id/local-authority/32UC,AD Capital - Strategic Growth and Development,Grants and Contributions to Outside Bodies - No Service Received,07/03/2024,30031327,"77,620.00 ",Lincolnshire Community Foundation
East Lindsey District Council,http://statistics.data.gov.uk/id/local-authority/32UC,AD Housing & Wellbeing,Bed and Breakfast Accommodation (Homelessness Service),07/03/2024,30031332,"1,035.00 ",Lakeside Hotel
East Lindsey District Council,http://statistics.data.gov.uk/id/local-authority/32UC,AD Housing & Wellbeing,Bed and Breakfast Accommodation (Homelessness Service),07/03/2024,30031363,850.00 ,Lakeside Hotel
East Lindsey District Council,http://statistics.data.gov.uk/id/local-authority/32UC,Economic Growth Service Manager (Place),Other Miscellaneous Expenses,07/03/2024,30031429,280.00 ,Louth Playgoers Riverhead Theatre
East Lindsey District Council,http://statistics.data.gov.uk/id/local-authority/32UC,Economic Growth Service Manager (Place),Professional and Contractors Fees,07/03/2024,30031200,800.00 ,Meet Pete Dinosaur
East Lindsey District Council,http://statistics.data.gov.uk/id/local-authority/32UC,Growth Relationships & Growth Promotions,Other Miscellaneous Expenses,07/03/2024,30031429,280.00 ,Louth Playgoers Riverhead Theatre
East Lindsey District Council,http://statistics.data.gov.uk/id/local-authority/32UC,Growth Relationships & Growth Promotions,Professional and Contractors Fees,07/03/2024,30031200,800.00 ,Meet Pete Dinosaur
East Lindsey District Council,http://statistics.data.gov.uk/id/local-authority/32UC,Housing & Homelessness,Bed and Breakfast Accommodation (Homelessness Service),07/03/2024,30031332,"1,035.00 ",Lakeside Hotel
East Lindsey District Council,http://statistics.data.gov.uk/id/local-authority/32UC,Housing & Homelessness,Bed and Breakfast Accommodation (Homelessness Service),07/03/2024,30031363,850.00 ,Lakeside Hotel
East Lindsey District Council,http://statistics.data.gov.uk/id/local-authority/32UC,Invest East Lindsey,Works to Buildings (Main Contractor),07/03/2024,30031420,999.00 ,The Workshop (Wisbech) Ltd
East Lindsey District Council,http://statistics.data.gov.uk/id/local-authority/32UC,Invest East Lindsey,Works to Buildings (Main Contractor),07/03/2024,30031428,"1,262.00 ",The Workshop (Wisbech) Ltd
East Lindsey District Council,http://statistics.data.gov.uk/id/local-authority/32UC,Neighbourhoods,Agency Staff,07/03/2024,30031433,"3,664.25 ",The Workshop (Wisbech) Ltd
East Lindsey District Council,http://statistics.data.gov.uk/id/local-authority/32UC,Neighbourhoods,Professional and Contractors Fees,07/03/2024,30031412,577.00 ,H Pawson and Son
East Lindsey District Council,http://statistics.data.gov.uk/id/local-authority/32UC,Neighbourhoods,Professional and Contractors Fees,07/03/2024,30031413,600.00 ,Sid Dennis and Sons Ltd
East Lindsey District Council,http://statistics.data.gov.uk/id/local-authority/32UC,Neighbourhoods,Professional and Contractors Fees,07/03/2024,30031414,450.00 ,Sid Dennis and Sons Ltd
East Lindsey District Council,http://statistics.data.gov.uk/id/local-authority/32UC,Property,Works to Buildings (Main Contractor),07/03/2024,30030547,"64,834.51 ",Pumping Solutions (UK) Limited
East Lindsey District Council,http://statistics.data.gov.uk/id/local-authority/32UC,Public Protection,Subscriptions to Organisations and Other Bodies,07/03/2024,30031509,"26,317.72 ",Lincolnshire County Council
East Lindsey District Council,http://statistics.data.gov.uk/id/local-authority/32UC,Service Manager - Affordable & Accessible Homes-Housing,Works to Buildings (Main Contractor),07/03/2024,30031333,"6,115.41 ",Clough Build Limited
East Lindsey District Council,http://statistics.data.gov.uk/id/local-authority/32UC,Service Manager - Affordable & Accessible Homes-Housing,Works to Buildings (Main Contractor),07/03/2024,30031365,"8,848.75 ",Clough Build Limited
East Lindsey District Council,http://statistics.data.gov.uk/id/local-authority/32UC,Service Manager - Affordable & Accessible Homes-Housing,Works to Buildings (Main Contractor),07/03/2024,30031441,"2,314.00 ",Obam Stairlifts
East Lindsey District Council,http://statistics.data.gov.uk/id/local-authority/32UC,Service Manager - Affordable & Accessible Homes-Housing,Works to Buildings (Main Contractor),07/03/2024,30031442,"7,429.88 ",Dolphin Mobility
East Lindsey District Council,http://statistics.data.gov.uk/id/local-authority/32UC,Service Manager - Affordable & Accessible Homes-Housing,Works to Buildings (Main Contractor),07/03/2024,30031449,"21,000.00 ",Belton Construction
East Lindsey District Council,http://statistics.data.gov.uk/id/local-authority/32UC,Waste,Professional and Contractors Fees,07/03/2024,30031409,419.63 ,Vending Enterprises
East Lindsey District Council,http://statistics.data.gov.uk/id/local-authority/32UC,Waste,Workshop Parts,07/03/2024,30031085,330.35 ,Truck Links
East Lindsey District Council,http://statistics.data.gov.uk/id/local-authority/32UC,Waste,Workshop Parts,07/03/2024,30031290,"8,981.43 ",Vaculug Technologies Ltd
East Lindsey District Council,http://statistics.data.gov.uk/id/local-authority/32UC,Waste,Workshop Parts,07/03/2024,30031472,375.00 ,M J Windscreens Ltd
East Lindsey District Council,http://statistics.data.gov.uk/id/local-authority/32UC,Development Control,Professional and Contractors Fees,11/03/2024,30031856,"4,166.67 ",DPA Planning Ltd
East Lindsey District Council,http://statistics.data.gov.uk/id/local-authority/32UC,AD Capital - Economic Growth,Professional Fees,12/03/2024,30030969,"27,787.84 ",EMR
East Lindsey District Council,http://statistics.data.gov.uk/id/local-authority/32UC,AD Capital - Economic Growth,Professional Fees,12/03/2024,30031148,"21,695.64 ",Heritage Trust of Lincolnshire Ltd
East Lindsey District Council,http://statistics.data.gov.uk/id/local-authority/32UC,AD Capital - Economic Growth,Professional Fees,12/03/2024,30031337,"14,793.82 ",Heritage Trust of Lincolnshire Ltd
East Lindsey District Council,http://statistics.data.gov.uk/id/local-authority/32UC,AD Capital - Regulation,Buildings Maintenance - Responsive,12/03/2024,30031268,"10,652.96 ",Gelder Ltd
East Lindsey District Council,http://statistics.data.gov.uk/id/local-authority/32UC,AD Capital - Strategic Projects,Professional and Contractors Fees,12/03/2024,30031631,"154,447.62 ",G F Tomlinson Building Limited
East Lindsey District Council,http://statistics.data.gov.uk/id/local-authority/32UC,AD Capital - Strategic Projects,Professional and Contractors Fees,12/03/2024,30031636,"472,468.00 ",Lindum Group Ltd
East Lindsey District Council,http://statistics.data.gov.uk/id/local-authority/32UC,AD Capital - Strategic Projects,Professional Fees,12/03/2024,30030969,"27,787.84 ",EMR
East Lindsey District Council,http://statistics.data.gov.uk/id/local-authority/32UC,AD Capital - Strategic Projects,Professional Fees,12/03/2024,30031148,"21,695.64 ",Heritage Trust of Lincolnshire Ltd
East Lindsey District Council,http://statistics.data.gov.uk/id/local-authority/32UC,AD Capital - Strategic Projects,Professional Fees,12/03/2024,30031337,"14,793.82 ",Heritage Trust of Lincolnshire Ltd
East Lindsey District Council,http://statistics.data.gov.uk/id/local-authority/32UC,AD Capital - Strategic Projects,Works to Buildings (Main Contractor),12/03/2024,30031630,"829,473.19 ",Alliance Leisure Services Limited
East Lindsey District Council,http://statistics.data.gov.uk/id/local-authority/32UC,AD Chief Finance Officer,Council Tax Rebate Income,12/03/2024,30031458,"171,500.00 ",Department for levelling Up Housing & Communities
East Lindsey District Council,http://statistics.data.gov.uk/id/local-authority/32UC,AD Chief Finance Officer,Shared Management,12/03/2024,30026573,"472,093.72 ",Boston Borough Council
East Lindsey District Council,http://statistics.data.gov.uk/id/local-authority/32UC,AD Chief Finance Officer,Shared Management,12/03/2024,30030240,"593,567.08 ",South Holland District Council
East Lindsey District Council,http://statistics.data.gov.uk/id/local-authority/32UC,AD Housing & Wellbeing,Grants and Contributions to Outside Bodies - No Service Received,12/03/2024,30031540,300.00 ,�Personal Information Redacted�
East Lindsey District Council,http://statistics.data.gov.uk/id/local-authority/32UC,AD Housing & Wellbeing,Other Miscellaneous Expenses,12/03/2024,30029020,330.00 ,Keystone Locks
East Lindsey District Council,http://statistics.data.gov.uk/id/local-authority/32UC,AD Housing & Wellbeing,Other Miscellaneous Expenses,12/03/2024,30029065,395.00 ,Keystone Locks
East Lindsey District Council,http://statistics.data.gov.uk/id/local-authority/32UC,AD Housing & Wellbeing,Other Miscellaneous Expenses,12/03/2024,30031384,447.00 ,Keystone Locks
East Lindsey District Council,http://statistics.data.gov.uk/id/local-authority/32UC,AD Housing & Wellbeing,Other Miscellaneous Expenses,12/03/2024,30031580,432.00 ,Keystone Locks
East Lindsey District Council,http://statistics.data.gov.uk/id/local-authority/32UC,AD Housing & Wellbeing,Other Miscellaneous Expenses,12/03/2024,30031594,280.00 ,Waste Away Clearance Service
East Lindsey District Council,http://statistics.data.gov.uk/id/local-authority/32UC,AD Leisure & Culture,Buildings Maintenance - Programmed,12/03/2024,30031268,"16,161.60 ",Gelder Ltd
East Lindsey District Council,http://statistics.data.gov.uk/id/local-authority/32UC,Building Control,Buildings Maintenance - Responsive,12/03/2024,30031268,"5,326.48 ",Gelder Ltd
East Lindsey District Council,http://statistics.data.gov.uk/id/local-authority/32UC,Development Control,Professional and Contractors Fees,12/03/2024,30031628,"3,500.00 ",Jennifer Wallis Planning Limited
East Lindsey District Council,http://statistics.data.gov.uk/id/local-authority/32UC,Economic Growth Service Manager (Place),Other Miscellaneous Expenses,12/03/2024,30031264,320.00 ,GRS Signs Ltd
East Lindsey District Council,http://statistics.data.gov.uk/id/local-authority/32UC,Economic Growth Service Manager (Place),Other Miscellaneous Expenses,12/03/2024,30031534,825.00 ,County Life Ltd
East Lindsey District Council,http://statistics.data.gov.uk/id/local-authority/32UC,Economic Growth Service Manager (Place),Performers and Entertainers Fees,12/03/2024,30031523,360.00 ,Splats Entertainment
East Lindsey District Council,http://statistics.data.gov.uk/id/local-authority/32UC,Enforcement,Professional and Contractors Fees,12/03/2024,30018985,497.12 ,B and B Tree Specialists
East Lindsey District Council,http://statistics.data.gov.uk/id/local-authority/32UC,Growth Relationships & Growth Promotions,Other Miscellaneous Expenses,12/03/2024,30031264,320.00 ,GRS Signs Ltd
East Lindsey District Council,http://statistics.data.gov.uk/id/local-authority/32UC,Growth Relationships & Growth Promotions,Other Miscellaneous Expenses,12/03/2024,30031534,825.00 ,County Life Ltd
East Lindsey District Council,http://statistics.data.gov.uk/id/local-authority/32UC,Housing & Homelessness,Grants and Contributions to Outside Bodies - No Service Received,12/03/2024,30031540,300.00 ,�Personal Information Redacted�
East Lindsey District Council,http://statistics.data.gov.uk/id/local-authority/32UC,Housing & Homelessness,Other Miscellaneous Expenses,12/03/2024,30029020,330.00 ,Keystone Locks
East Lindsey District Council,http://statistics.data.gov.uk/id/local-authority/32UC,Housing & Homelessness,Other Miscellaneous Expenses,12/03/2024,30029065,395.00 ,Keystone Locks
East Lindsey District Council,http://statistics.data.gov.uk/id/local-authority/32UC,Housing & Homelessness,Other Miscellaneous Expenses,12/03/2024,30031384,447.00 ,Keystone Locks
East Lindsey District Council,http://statistics.data.gov.uk/id/local-authority/32UC,Housing & Homelessness,Other Miscellaneous Expenses,12/03/2024,30031580,432.00 ,Keystone Locks
East Lindsey District Council,http://statistics.data.gov.uk/id/local-authority/32UC,Housing & Homelessness,Other Miscellaneous Expenses,12/03/2024,30031594,280.00 ,Waste Away Clearance Service
East Lindsey District Council,http://statistics.data.gov.uk/id/local-authority/32UC,Information Technology,Computer Hardware Purchase,12/03/2024,30028617,"5,666.04 ",Digicube Ltd
East Lindsey District Council,http://statistics.data.gov.uk/id/local-authority/32UC,Information Technology,Computer Software Licence Costs,12/03/2024,30031480,"1,652.60 ",Public Sector Partnership Services Ltd
East Lindsey District Council,http://statistics.data.gov.uk/id/local-authority/32UC,Information Technology,Computer Software Licence Costs,12/03/2024,30031484,"15,411.98 ",Public Sector Partnership Services Ltd
East Lindsey District Council,http://statistics.data.gov.uk/id/local-authority/32UC,Information Technology,Materials and Consumables,12/03/2024,30031481,648.76 ,Public Sector Partnership Services Ltd
East Lindsey District Council,http://statistics.data.gov.uk/id/local-authority/32UC,Information Technology,Mobile Phones,12/03/2024,30031479,"7,762.13 ",Public Sector Partnership Services Ltd
East Lindsey District Council,http://statistics.data.gov.uk/id/local-authority/32UC,Information Technology,Mobile Phones,12/03/2024,30031487,661.14 ,Public Sector Partnership Services Ltd
East Lindsey District Council,http://statistics.data.gov.uk/id/local-authority/32UC,Information Technology,Purchase of Hardware,12/03/2024,30031482,"14,244.30 ",Public Sector Partnership Services Ltd
East Lindsey District Council,http://statistics.data.gov.uk/id/local-authority/32UC,Information Technology,Telephones,12/03/2024,30031556,"1,009.61 ",Nominet UK
East Lindsey District Council,http://statistics.data.gov.uk/id/local-authority/32UC,Neighbourhoods,Agency Staff,12/03/2024,30031532,"2,830.91 ",The Workshop (Wisbech) Ltd
East Lindsey District Council,http://statistics.data.gov.uk/id/local-authority/32UC,Neighbourhoods,Professional and Contractors Fees,12/03/2024,30018985,497.12 ,B and B Tree Specialists
East Lindsey District Council,http://statistics.data.gov.uk/id/local-authority/32UC,Neighbourhoods,Professional and Contractors Fees,12/03/2024,30031430,750.00 ,Sid Dennis and Sons Ltd
East Lindsey District Council,http://statistics.data.gov.uk/id/local-authority/32UC,Neighbourhoods,Professional and Contractors Fees,12/03/2024,30031557,592.79 ,Wastecare Ltd
East Lindsey District Council,http://statistics.data.gov.uk/id/local-authority/32UC,Neighbourhoods,Professional and Contractors Fees,12/03/2024,30031558,343.93 ,Wastecare Ltd
East Lindsey District Council,http://statistics.data.gov.uk/id/local-authority/32UC,"Performance, Governance & Commissioning",Grants and Contributions to Outside Bodies - No Service Received,12/03/2024,30031308,500.00 ,Wildmore Parish Council
East Lindsey District Council,http://statistics.data.gov.uk/id/local-authority/32UC,"Performance, Governance & Commissioning",Grants and Contributions to Outside Bodies - No Service Received,12/03/2024,30031336,"1,026.00 ",Furnchurch
East Lindsey District Council,http://statistics.data.gov.uk/id/local-authority/32UC,"Performance, Governance & Commissioning",Grants and Contributions to Outside Bodies - No Service Received,12/03/2024,30031342,420.00 ,Tattershall With Thorpe Parish Council
East Lindsey District Council,http://statistics.data.gov.uk/id/local-authority/32UC,"Performance, Governance & Commissioning",Grants and Contributions to Outside Bodies - No Service Received,12/03/2024,30031398,800.00 ,Stroke Survivors LN9 (SSLN9)
East Lindsey District Council,http://statistics.data.gov.uk/id/local-authority/32UC,"Performance, Governance & Commissioning",Grants and Contributions to Outside Bodies - No Service Received,12/03/2024,30031451,400.00 ,Old Bolingbroke with Hareby Parish Cnl
East Lindsey District Council,http://statistics.data.gov.uk/id/local-authority/32UC,"Performance, Governance & Commissioning",Grants and Contributions to Outside Bodies - No Service Received,12/03/2024,30031459,600.00 ,Mablethorpe Guide Association
East Lindsey District Council,http://statistics.data.gov.uk/id/local-authority/32UC,"Performance, Governance & Commissioning",Grants and Contributions to Outside Bodies - No Service Received,12/03/2024,30031553,"1,110.00 ",North Somercotes Parish Council
East Lindsey District Council,http://statistics.data.gov.uk/id/local-authority/32UC,"Performance, Governance & Commissioning",Grants and Contributions to Outside Bodies - No Service Received,12/03/2024,30031554,400.00 ,Partney and Dalby Parish Council
East Lindsey District Council,http://statistics.data.gov.uk/id/local-authority/32UC,"Performance, Governance & Commissioning",Grants and Contributions to Outside Bodies - No Service Received,12/03/2024,30031598,"1,000.00 ",Holton Le Clay Village Hall
East Lindsey District Council,http://statistics.data.gov.uk/id/local-authority/32UC,"Performance, Governance & Commissioning",Grants and Contributions to Outside Bodies - No Service Received,12/03/2024,30031600,300.00 ,High Toynton PCC
East Lindsey District Council,http://statistics.data.gov.uk/id/local-authority/32UC,"Performance, Governance & Commissioning",Grants and Contributions to Outside Bodies - No Service Received,12/03/2024,30031604,850.00 ,Baumber Parish Council
East Lindsey District Council,http://statistics.data.gov.uk/id/local-authority/32UC,"Performance, Governance & Commissioning",Grants and Contributions to Outside Bodies - No Service Received,12/03/2024,30031607,"1,060.00 ",Louth Playgoers Riverhead Theatre
East Lindsey District Council,http://statistics.data.gov.uk/id/local-authority/32UC,"Performance, Governance & Commissioning",Other Miscellaneous Expenses,12/03/2024,30031581,366.00 ,Boston Borough Council
East Lindsey District Council,http://statistics.data.gov.uk/id/local-authority/32UC,Property,Buildings Maintenance - Programmed,12/03/2024,30031268,"85,926.61 ",Gelder Ltd
East Lindsey District Council,http://statistics.data.gov.uk/id/local-authority/32UC,Property,Buildings Maintenance - Responsive,12/03/2024,30031268,366.01 ,Gelder Ltd
East Lindsey District Council,http://statistics.data.gov.uk/id/local-authority/32UC,Property,Buildings Maintenance - Responsive,12/03/2024,30031593,335.00 ,GRS Signs Ltd
East Lindsey District Council,http://statistics.data.gov.uk/id/local-authority/32UC,Property,Other Communication Costs,12/03/2024,30031296,300.00 ,Digicube Ltd
East Lindsey District Council,http://statistics.data.gov.uk/id/local-authority/32UC,Property,Other Communication Costs,12/03/2024,30031297,300.00 ,Digicube Ltd
East Lindsey District Council,http://statistics.data.gov.uk/id/local-authority/32UC,Property,Other Communication Costs,12/03/2024,30031612,300.00 ,Digicube Ltd
East Lindsey District Council,http://statistics.data.gov.uk/id/local-authority/32UC,Property,Rent Payments,12/03/2024,30031381,"1,494.67 ",Lincolnshire County Council
East Lindsey District Council,http://statistics.data.gov.uk/id/local-authority/32UC,Public Protection,Other Miscellaneous Expenses,12/03/2024,30031510,"1,510.00 ",Lincolnshire County Council
East Lindsey District Council,http://statistics.data.gov.uk/id/local-authority/32UC,Public Protection,Other Miscellaneous Expenses,12/03/2024,30031511,"1,650.00 ",Lincolnshire County Council
East Lindsey District Council,http://statistics.data.gov.uk/id/local-authority/32UC,Public Protection,Other Miscellaneous Expenses,12/03/2024,30031512,"4,860.66 ",Lincolnshire County Council
East Lindsey District Council,http://statistics.data.gov.uk/id/local-authority/32UC,Service Manager - Affordable & Accessible Homes-Housing,Works to Buildings (Main Contractor),12/03/2024,30031477,"1,250.00 ",GF Design Services
East Lindsey District Council,http://statistics.data.gov.uk/id/local-authority/32UC,Service Manager - Affordable & Accessible Homes-Housing,Works to Buildings (Main Contractor),12/03/2024,30031519,"49,920.00 ",C K Grainger & Son Ltd
East Lindsey District Council,http://statistics.data.gov.uk/id/local-authority/32UC,Service Manager - Affordable & Accessible Homes-Housing,Works to Buildings (Main Contractor),12/03/2024,30031539,"7,185.23 ",Gary Walmsley Construction
East Lindsey District Council,http://statistics.data.gov.uk/id/local-authority/32UC,Service Manager - Affordable & Accessible Homes-Housing,Works to Buildings (Main Contractor),12/03/2024,30031549,"2,909.00 ",Dolphin Mobility
East Lindsey District Council,http://statistics.data.gov.uk/id/local-authority/32UC,Service Manager - Affordable & Accessible Homes-Housing,Works to Buildings (Main Contractor),12/03/2024,30031551,"5,235.00 ",Dolphin Mobility
East Lindsey District Council,http://statistics.data.gov.uk/id/local-authority/32UC,Service Manager - Affordable & Accessible Homes-Housing,Works to Buildings (Main Contractor),12/03/2024,30031555,"13,782.56 ",Gary Walmsley Construction
East Lindsey District Council,http://statistics.data.gov.uk/id/local-authority/32UC,Service Manager - Affordable & Accessible Homes-Housing,Works to Buildings (Main Contractor),12/03/2024,30031619,"23,846.12 ",Warics Ltd
East Lindsey District Council,http://statistics.data.gov.uk/id/local-authority/32UC,Service Manager - Affordable & Accessible Homes-Housing,Works to Buildings (Main Contractor),12/03/2024,30031620,"15,956.70 ",Princebuild Ltd
East Lindsey District Council,http://statistics.data.gov.uk/id/local-authority/32UC,Service Manager - Affordable & Accessible Homes-Housing,Works to Buildings (Main Contractor),12/03/2024,30031621,"27,600.00 ",Mark Donner Ltd
East Lindsey District Council,http://statistics.data.gov.uk/id/local-authority/32UC,Service Manager - Affordable & Accessible Homes-Housing,Works to Buildings (Main Contractor),12/03/2024,30031629,"6,275.47 ",Sibjon Builders
East Lindsey District Council,http://statistics.data.gov.uk/id/local-authority/32UC,Waste,Agency Staff,12/03/2024,30031528,"4,942.04 ",Red Rock Partnership Ltd
East Lindsey District Council,http://statistics.data.gov.uk/id/local-authority/32UC,Waste,Workshop Parts,12/03/2024,30031280,469.75 ,Sharmans of Louth
East Lindsey District Council,http://statistics.data.gov.uk/id/local-authority/32UC,Waste,Workshop Parts,12/03/2024,30031571,266.98 ,Dennis Eagle Ltd
East Lindsey District Council,http://statistics.data.gov.uk/id/local-authority/32UC,AD Capital - Regulation,Agency Staff,14/03/2024,30031708,"5,391.00 ",BRG Interim Solutions Ltd
East Lindsey District Council,http://statistics.data.gov.uk/id/local-authority/32UC,AD Capital - Regulation,Agency Staff,14/03/2024,30031725,"5,229.00 ",BRG Interim Solutions Ltd
East Lindsey District Council,http://statistics.data.gov.uk/id/local-authority/32UC,AD Capital - Strategic Growth and Development,Grants and Contributions to Outside Bodies - No Service Received,14/03/2024,30031460,"2,948.00 ",T & L Garage Services Ltd
East Lindsey District Council,http://statistics.data.gov.uk/id/local-authority/32UC,AD Capital - Strategic Growth and Development,Grants and Contributions to Outside Bodies - No Service Received,14/03/2024,30031730,"1,000.00 ",Lincolnshire Community Foundation
East Lindsey District Council,http://statistics.data.gov.uk/id/local-authority/32UC,AD Chief Finance Officer,Lincolnshire Legal Services,14/03/2024,30031455,"44,603.32 ",Lincolnshire County Council
East Lindsey District Council,http://statistics.data.gov.uk/id/local-authority/32UC,AD Chief Finance Officer,Subscriptions to Organisations and Other Bodies,14/03/2024,30031653,"6,630.00 ",LG Futures Ltd
East Lindsey District Council,http://statistics.data.gov.uk/id/local-authority/32UC,AD Economic Growth,Professional Fees,14/03/2024,30031129,350.00 ,Michael Gallie & Partners Ltd
East Lindsey District Council,http://statistics.data.gov.uk/id/local-authority/32UC,AD Housing & Wellbeing,Bed and Breakfast Accommodation (Homelessness Service),14/03/2024,30031566,"1,500.00 ",Beeston Lodge Hotel
East Lindsey District Council,http://statistics.data.gov.uk/id/local-authority/32UC,AD Housing & Wellbeing,Bed and Breakfast Accommodation (Homelessness Service),14/03/2024,30031567,750.00 ,Beeston Lodge Hotel
East Lindsey District Council,http://statistics.data.gov.uk/id/local-authority/32UC,AD Housing & Wellbeing,Bed and Breakfast Accommodation (Homelessness Service),14/03/2024,30031568,800.00 ,Beeston Lodge Hotel
East Lindsey District Council,http://statistics.data.gov.uk/id/local-authority/32UC,AD Housing & Wellbeing,Bed and Breakfast Accommodation (Homelessness Service),14/03/2024,30031569,350.00 ,Beeston Lodge Hotel
East Lindsey District Council,http://statistics.data.gov.uk/id/local-authority/32UC,AD Housing & Wellbeing,Grants and Contributions - Where a Service is Received,14/03/2024,30031661,"10,000.00 ",Charis Grants Ltd
East Lindsey District Council,http://statistics.data.gov.uk/id/local-authority/32UC,AD Housing & Wellbeing,Grants and Contributions to Outside Bodies - No Service Received,14/03/2024,30031645,500.00 ,�Personal Information Redacted�
East Lindsey District Council,http://statistics.data.gov.uk/id/local-authority/32UC,AD Housing & Wellbeing,Grants and Contributions to Outside Bodies - No Service Received,14/03/2024,30031646,430.71 ,Platform Housing Limited
East Lindsey District Council,http://statistics.data.gov.uk/id/local-authority/32UC,AD Housing & Wellbeing,Grants and Contributions to Outside Bodies - No Service Received,14/03/2024,30031664,"5,000.00 ",Horncastle Crisis Support Team
East Lindsey District Council,http://statistics.data.gov.uk/id/local-authority/32UC,AD Housing & Wellbeing,Grants and Contributions to Outside Bodies - No Service Received,14/03/2024,30031665,"2,000.00 ",Alford Hub
East Lindsey District Council,http://statistics.data.gov.uk/id/local-authority/32UC,AD Housing & Wellbeing,Grants and Contributions to Outside Bodies - No Service Received,14/03/2024,30031676,"5,000.00 ",The Storehouse Church Skegness
East Lindsey District Council,http://statistics.data.gov.uk/id/local-authority/32UC,AD Housing & Wellbeing,Grants and Contributions to Outside Bodies - No Service Received,14/03/2024,30031677,"5,000.00 ",New Life Community Church
East Lindsey District Council,http://statistics.data.gov.uk/id/local-authority/32UC,AD Housing & Wellbeing,Grants and Contributions to Outside Bodies - No Service Received,14/03/2024,30031696,"46,059.75 ",New Life Community Church
East Lindsey District Council,http://statistics.data.gov.uk/id/local-authority/32UC,AD Housing & Wellbeing,Other local authorities,14/03/2024,30031391,"40,470.90 ",City of Lincoln Council
East Lindsey District Council,http://statistics.data.gov.uk/id/local-authority/32UC,Building Control,Agency Staff,14/03/2024,30031708,"2,695.50 ",BRG Interim Solutions Ltd
East Lindsey District Council,http://statistics.data.gov.uk/id/local-authority/32UC,Building Control,Agency Staff,14/03/2024,30031725,"2,614.50 ",BRG Interim Solutions Ltd
East Lindsey District Council,http://statistics.data.gov.uk/id/local-authority/32UC,Environmental Health,Other agencies,14/03/2024,30031726,"1,100.00 ",Kingdom Local Authority Support
East Lindsey District Council,http://statistics.data.gov.uk/id/local-authority/32UC,Environmental Health,Other agencies,14/03/2024,30031727,"21,240.00 ",Kingdom Local Authority Support
East Lindsey District Council,http://statistics.data.gov.uk/id/local-authority/32UC,Growth Relationships & Growth Promotions,Professional and Contractors Fees,14/03/2024,30031652,"1,100.00 ",The Engaging People Company
East Lindsey District Council,http://statistics.data.gov.uk/id/local-authority/32UC,Healthy Living Services Manager,Grants and Contributions to Outside Bodies - No Service Received,14/03/2024,30031645,500.00 ,�Personal Information Redacted�
East Lindsey District Council,http://statistics.data.gov.uk/id/local-authority/32UC,Healthy Living Services Manager,Grants and Contributions to Outside Bodies - No Service Received,14/03/2024,30031664,"5,000.00 ",Horncastle Crisis Support Team
East Lindsey District Council,http://statistics.data.gov.uk/id/local-authority/32UC,Healthy Living Services Manager,Grants and Contributions to Outside Bodies - No Service Received,14/03/2024,30031665,"2,000.00 ",Alford Hub
East Lindsey District Council,http://statistics.data.gov.uk/id/local-authority/32UC,Healthy Living Services Manager,Grants and Contributions to Outside Bodies - No Service Received,14/03/2024,30031676,"5,000.00 ",The Storehouse Church Skegness
East Lindsey District Council,http://statistics.data.gov.uk/id/local-authority/32UC,Healthy Living Services Manager,Grants and Contributions to Outside Bodies - No Service Received,14/03/2024,30031677,"5,000.00 ",New Life Community Church
East Lindsey District Council,http://statistics.data.gov.uk/id/local-authority/32UC,Housing & Homelessness,Bed and Breakfast Accommodation (Homelessness Service),14/03/2024,30031566,"1,500.00 ",Beeston Lodge Hotel
East Lindsey District Council,http://statistics.data.gov.uk/id/local-authority/32UC,Housing & Homelessness,Bed and Breakfast Accommodation (Homelessness Service),14/03/2024,30031567,750.00 ,Beeston Lodge Hotel
East Lindsey District Council,http://statistics.data.gov.uk/id/local-authority/32UC,Housing & Homelessness,Bed and Breakfast Accommodation (Homelessness Service),14/03/2024,30031568,800.00 ,Beeston Lodge Hotel
East Lindsey District Council,http://statistics.data.gov.uk/id/local-authority/32UC,Housing & Homelessness,Bed and Breakfast Accommodation (Homelessness Service),14/03/2024,30031569,350.00 ,Beeston Lodge Hotel
East Lindsey District Council,http://statistics.data.gov.uk/id/local-authority/32UC,Housing & Homelessness,Grants and Contributions to Outside Bodies - No Service Received,14/03/2024,30031646,430.71 ,Platform Housing Limited
East Lindsey District Council,http://statistics.data.gov.uk/id/local-authority/32UC,Housing & Homelessness,Grants and Contributions to Outside Bodies - No Service Received,14/03/2024,30031696,"46,059.75 ",New Life Community Church
East Lindsey District Council,http://statistics.data.gov.uk/id/local-authority/32UC,Information Technology,Computer Software Licence Costs,14/03/2024,30031627,"11,381.18 ",Idox
East Lindsey District Council,http://statistics.data.gov.uk/id/local-authority/32UC,Property,Furniture and Equipment,14/03/2024,30025341,"1,170.00 ",Culligan UK Ltd
East Lindsey District Council,http://statistics.data.gov.uk/id/local-authority/32UC,Public Protection,Grants and Contributions - Where a Service is Received,14/03/2024,30031585,"133,359.52 ",Boston Borough Council
East Lindsey District Council,http://statistics.data.gov.uk/id/local-authority/32UC,Waste,Agency Staff,14/03/2024,30031277,"5,764.66 ",Red Rock Partnership Ltd
East Lindsey District Council,http://statistics.data.gov.uk/id/local-authority/32UC,Waste,Employee Professional Subscriptions (Non-Payroll),14/03/2024,30031697,768.00 ,NABMA
East Lindsey District Council,http://statistics.data.gov.uk/id/local-authority/32UC,Wellbeing Services Manager,Grants and Contributions - Where a Service is Received,14/03/2024,30031661,"10,000.00 ",Charis Grants Ltd
East Lindsey District Council,http://statistics.data.gov.uk/id/local-authority/32UC,Wellbeing Services Manager,Other local authorities,14/03/2024,30031391,"40,470.90 ",City of Lincoln Council
East Lindsey District Council,http://statistics.data.gov.uk/id/local-authority/32UC,Property,Gas,15/03/2024,30031917,"1,874.51 ",Espo Gas and Electricity
East Lindsey District Council,http://statistics.data.gov.uk/id/local-authority/32UC,Property,Gas,15/03/2024,30031918,"2,154.06 ",Espo Gas and Electricity
East Lindsey District Council,http://statistics.data.gov.uk/id/local-authority/32UC,Property,Gas,15/03/2024,30031921,249.99 ,Espo Gas and Electricity
East Lindsey District Council,http://statistics.data.gov.uk/id/local-authority/32UC,Property,Gas,15/03/2024,30031922,"5,727.84 ",Espo Gas and Electricity
East Lindsey District Council,http://statistics.data.gov.uk/id/local-authority/32UC,Property,Gas,15/03/2024,30031926,"1,309.16 ",Espo Gas and Electricity
East Lindsey District Council,http://statistics.data.gov.uk/id/local-authority/32UC,AD Capital - Regulation,Fees and Charges General,19/03/2024,30030908,350.00 ,�Personal Information Redacted�
East Lindsey District Council,http://statistics.data.gov.uk/id/local-authority/32UC,AD Capital - Regulation,Professional and Contractors Fees,19/03/2024,30031859,"3,233.84 ",Boston Borough Council
East Lindsey District Council,http://statistics.data.gov.uk/id/local-authority/32UC,AD Capital - Strategic Growth and Development,Grants and Contributions to Outside Bodies - No Service Received,19/03/2024,30031864,"1,500.00 ",Yulebaron Ltd
East Lindsey District Council,http://statistics.data.gov.uk/id/local-authority/32UC,AD Chief Finance Officer,Business Rates - Contribution to Surplus/Deficit,19/03/2024,30032211,"143,193.00 ",MHCLG
East Lindsey District Council,http://statistics.data.gov.uk/id/local-authority/32UC,AD Chief Finance Officer,Business Rates - Share of Income Central Government,19/03/2024,30032211,"1,323,997.00 ",MHCLG
East Lindsey District Council,http://statistics.data.gov.uk/id/local-authority/32UC,AD Chief Finance Officer,Business Rates - Transitional Protection Payments,19/03/2024,30032211,"-257,954.00 ",MHCLG
East Lindsey District Council,http://statistics.data.gov.uk/id/local-authority/32UC,AD Chief Finance Officer,Business Rates Tariff,19/03/2024,30032133,"626,128.00 ",Lincolnshire County Council
East Lindsey District Council,http://statistics.data.gov.uk/id/local-authority/32UC,AD Chief Finance Officer,Non-Ringfenced Government Grants - RSG,19/03/2024,30032211,"-104,777.00 ",MHCLG
East Lindsey District Council,http://statistics.data.gov.uk/id/local-authority/32UC,AD Chief Finance Officer,Other local authorities,19/03/2024,30031855,"67,200.00 ",Lincolnshire County Council
East Lindsey District Council,http://statistics.data.gov.uk/id/local-authority/32UC,AD Chief Finance Officer,Public Sector Partnership Services,19/03/2024,30031668,"481,597.58 ",Public Sector Partnership Services Ltd
East Lindsey District Council,http://statistics.data.gov.uk/id/local-authority/32UC,AD Housing & Wellbeing,Bed and Breakfast Accommodation (Homelessness Service),19/03/2024,30031670,700.00 ,Beeston Lodge Hotel
East Lindsey District Council,http://statistics.data.gov.uk/id/local-authority/32UC,AD Housing & Wellbeing,Bed and Breakfast Accommodation (Homelessness Service),19/03/2024,30031671,700.00 ,Beeston Lodge Hotel
East Lindsey District Council,http://statistics.data.gov.uk/id/local-authority/32UC,AD Housing & Wellbeing,Bed and Breakfast Accommodation (Homelessness Service),19/03/2024,30031672,700.00 ,Beeston Lodge Hotel
East Lindsey District Council,http://statistics.data.gov.uk/id/local-authority/32UC,AD Housing & Wellbeing,Bed and Breakfast Accommodation (Homelessness Service),19/03/2024,30031673,700.00 ,Beeston Lodge Hotel
East Lindsey District Council,http://statistics.data.gov.uk/id/local-authority/32UC,AD Housing & Wellbeing,Bed and Breakfast Accommodation (Homelessness Service),19/03/2024,30031674,700.00 ,Beeston Lodge Hotel
East Lindsey District Council,http://statistics.data.gov.uk/id/local-authority/32UC,AD Housing & Wellbeing,Electricity,19/03/2024,30031811,88.61 ,OVO Energy Ltd.
East Lindsey District Council,http://statistics.data.gov.uk/id/local-authority/32UC,AD Housing & Wellbeing,Electricity,19/03/2024,30031812,226.28 ,EDF Energy
East Lindsey District Council,http://statistics.data.gov.uk/id/local-authority/32UC,AD Housing & Wellbeing,Electricity,19/03/2024,30031813,7.80 ,EDF Energy
East Lindsey District Council,http://statistics.data.gov.uk/id/local-authority/32UC,AD Housing & Wellbeing,Furniture and Equipment,19/03/2024,30031809,309.99 ,Faulkners
East Lindsey District Council,http://statistics.data.gov.uk/id/local-authority/32UC,AD Housing & Wellbeing,Gas,19/03/2024,30031811,261.03 ,OVO Energy Ltd.
East Lindsey District Council,http://statistics.data.gov.uk/id/local-authority/32UC,AD Housing & Wellbeing,Gas,19/03/2024,30031812,191.05 ,EDF Energy
East Lindsey District Council,http://statistics.data.gov.uk/id/local-authority/32UC,AD Housing & Wellbeing,Gas,19/03/2024,30031813,275.93 ,EDF Energy
East Lindsey District Council,http://statistics.data.gov.uk/id/local-authority/32UC,AD Housing & Wellbeing,Grants and Contributions to Outside Bodies - No Service Received,19/03/2024,30031647,421.48 ,Longhurst Group
East Lindsey District Council,http://statistics.data.gov.uk/id/local-authority/32UC,AD Housing & Wellbeing,Grants and Contributions to Outside Bodies - No Service Received,19/03/2024,30031682,440.00 ,�Personal Information Redacted�
East Lindsey District Council,http://statistics.data.gov.uk/id/local-authority/32UC,AD Housing & Wellbeing,Grants and Contributions to Outside Bodies - No Service Received,19/03/2024,30031805,445.97 ,Platform Housing Limited
East Lindsey District Council,http://statistics.data.gov.uk/id/local-authority/32UC,AD Housing & Wellbeing,Grants and Contributions to Outside Bodies - No Service Received,19/03/2024,30031863,"3,000.00 ",Alford Hub
East Lindsey District Council,http://statistics.data.gov.uk/id/local-authority/32UC,AD Housing & Wellbeing,Other Miscellaneous Expenses,19/03/2024,30031808,555.00 ,Class Cleaning of Louth
East Lindsey District Council,http://statistics.data.gov.uk/id/local-authority/32UC,AD Leisure & Culture,Buildings Maintenance - Programmed,19/03/2024,30031395,455.00 ,Evoqua Water Technologies Ltd
East Lindsey District Council,http://statistics.data.gov.uk/id/local-authority/32UC,AD Leisure & Culture,Buildings Maintenance - Programmed,19/03/2024,30031815,"3,126.00 ",GRS Electrical Services Ltd
East Lindsey District Council,http://statistics.data.gov.uk/id/local-authority/32UC,Building Control,Professional and Contractors Fees,19/03/2024,30031859,"1,616.92 ",Boston Borough Council
East Lindsey District Council,http://statistics.data.gov.uk/id/local-authority/32UC,DC Revenues & Benefits,PSPS Non-Base Contract Costs,19/03/2024,30031796,"21,790.00 ",Public Sector Partnership Services Ltd
East Lindsey District Council,http://statistics.data.gov.uk/id/local-authority/32UC,Economic Growth Service Manager (Place),Other Miscellaneous Expenses,19/03/2024,30031701,"1,000.00 ",Heritage Trust of Lincolnshire Ltd
East Lindsey District Council,http://statistics.data.gov.uk/id/local-authority/32UC,Growth Relationships & Growth Promotions,Other Miscellaneous Expenses,19/03/2024,30031701,"1,000.00 ",Heritage Trust of Lincolnshire Ltd
East Lindsey District Council,http://statistics.data.gov.uk/id/local-authority/32UC,Healthy Living Services Manager,Grants and Contributions to Outside Bodies - No Service Received,19/03/2024,30031863,"3,000.00 ",Alford Hub
East Lindsey District Council,http://statistics.data.gov.uk/id/local-authority/32UC,Housing & Homelessness,Bed and Breakfast Accommodation (Homelessness Service),19/03/2024,30031670,700.00 ,Beeston Lodge Hotel
East Lindsey District Council,http://statistics.data.gov.uk/id/local-authority/32UC,Housing & Homelessness,Bed and Breakfast Accommodation (Homelessness Service),19/03/2024,30031671,700.00 ,Beeston Lodge Hotel
East Lindsey District Council,http://statistics.data.gov.uk/id/local-authority/32UC,Housing & Homelessness,Bed and Breakfast Accommodation (Homelessness Service),19/03/2024,30031672,700.00 ,Beeston Lodge Hotel
East Lindsey District Council,http://statistics.data.gov.uk/id/local-authority/32UC,Housing & Homelessness,Bed and Breakfast Accommodation (Homelessness Service),19/03/2024,30031673,700.00 ,Beeston Lodge Hotel
East Lindsey District Council,http://statistics.data.gov.uk/id/local-authority/32UC,Housing & Homelessness,Bed and Breakfast Accommodation (Homelessness Service),19/03/2024,30031674,700.00 ,Beeston Lodge Hotel
East Lindsey District Council,http://statistics.data.gov.uk/id/local-authority/32UC,Housing & Homelessness,Electricity,19/03/2024,30031811,88.61 ,OVO Energy Ltd.
East Lindsey District Council,http://statistics.data.gov.uk/id/local-authority/32UC,Housing & Homelessness,Electricity,19/03/2024,30031812,226.28 ,EDF Energy
East Lindsey District Council,http://statistics.data.gov.uk/id/local-authority/32UC,Housing & Homelessness,Electricity,19/03/2024,30031813,7.80 ,EDF Energy
East Lindsey District Council,http://statistics.data.gov.uk/id/local-authority/32UC,Housing & Homelessness,Furniture and Equipment,19/03/2024,30031809,309.99 ,Faulkners
East Lindsey District Council,http://statistics.data.gov.uk/id/local-authority/32UC,Housing & Homelessness,Gas,19/03/2024,30031811,261.03 ,OVO Energy Ltd.
East Lindsey District Council,http://statistics.data.gov.uk/id/local-authority/32UC,Housing & Homelessness,Gas,19/03/2024,30031812,191.05 ,EDF Energy
East Lindsey District Council,http://statistics.data.gov.uk/id/local-authority/32UC,Housing & Homelessness,Gas,19/03/2024,30031813,275.93 ,EDF Energy
East Lindsey District Council,http://statistics.data.gov.uk/id/local-authority/32UC,Housing & Homelessness,Grants and Contributions to Outside Bodies - No Service Received,19/03/2024,30031647,421.48 ,Longhurst Group
East Lindsey District Council,http://statistics.data.gov.uk/id/local-authority/32UC,Housing & Homelessness,Grants and Contributions to Outside Bodies - No Service Received,19/03/2024,30031682,440.00 ,�Personal Information Redacted�
East Lindsey District Council,http://statistics.data.gov.uk/id/local-authority/32UC,Housing & Homelessness,Grants and Contributions to Outside Bodies - No Service Received,19/03/2024,30031805,445.97 ,Platform Housing Limited
East Lindsey District Council,http://statistics.data.gov.uk/id/local-authority/32UC,Housing & Homelessness,Other Miscellaneous Expenses,19/03/2024,30031808,555.00 ,Class Cleaning of Louth
East Lindsey District Council,http://statistics.data.gov.uk/id/local-authority/32UC,Information Technology,Computer Software Licence Costs,19/03/2024,30031091,612.00 ,Phoenix Software Ltd
East Lindsey District Council,http://statistics.data.gov.uk/id/local-authority/32UC,Information Technology,Mobile Phones,19/03/2024,30031867,661.14 ,Public Sector Partnership Services Ltd
East Lindsey District Council,http://statistics.data.gov.uk/id/local-authority/32UC,Information Technology,Purchase of Hardware,19/03/2024,30031868,"5,019.00 ",Public Sector Partnership Services Ltd
East Lindsey District Council,http://statistics.data.gov.uk/id/local-authority/32UC,Invest East Lindsey,Works to Buildings (Main Contractor),19/03/2024,30031802,"3,523.60 ",The Workshop (Wisbech) Ltd
East Lindsey District Council,http://statistics.data.gov.uk/id/local-authority/32UC,Invest East Lindsey,Works to Buildings (Main Contractor),19/03/2024,30031803,"1,244.83 ",The Workshop (Wisbech) Ltd
East Lindsey District Council,http://statistics.data.gov.uk/id/local-authority/32UC,Neighbourhoods,Agency Staff,19/03/2024,30031886,"3,386.47 ",The Workshop (Wisbech) Ltd
East Lindsey District Council,http://statistics.data.gov.uk/id/local-authority/32UC,Neighbourhoods,Professional and Contractors Fees,19/03/2024,30031887,900.00 ,Sid Dennis and Sons Ltd
East Lindsey District Council,http://statistics.data.gov.uk/id/local-authority/32UC,Neighbourhoods,Staff Training Expenses (Non-Payroll),19/03/2024,30031807,912.00 ,East Lincs Rural Training
East Lindsey District Council,http://statistics.data.gov.uk/id/local-authority/32UC,Neighbourhoods,Water and Sewerage Charges,19/03/2024,30031762,380.94 ,Wave Anglian Water Business National Ltd
East Lindsey District Council,http://statistics.data.gov.uk/id/local-authority/32UC,Neighbourhoods,Water and Sewerage Charges,19/03/2024,30031773,279.35 ,Wave Anglian Water Business National Ltd
East Lindsey District Council,http://statistics.data.gov.uk/id/local-authority/32UC,"Performance, Governance & Commissioning",Agency Staff,19/03/2024,30031688,888.00 ,The One Group
East Lindsey District Council,http://statistics.data.gov.uk/id/local-authority/32UC,"Performance, Governance & Commissioning",Agency Staff,19/03/2024,30031689,876.00 ,The One Group
East Lindsey District Council,http://statistics.data.gov.uk/id/local-authority/32UC,"Performance, Governance & Commissioning",Agency Staff,19/03/2024,30031690,864.00 ,The One Group
East Lindsey District Council,http://statistics.data.gov.uk/id/local-authority/32UC,"Performance, Governance & Commissioning",Agency Staff,19/03/2024,30031692,888.00 ,The One Group
East Lindsey District Council,http://statistics.data.gov.uk/id/local-authority/32UC,"Performance, Governance & Commissioning",Agency Staff,19/03/2024,30031693,720.00 ,The One Group
East Lindsey District Council,http://statistics.data.gov.uk/id/local-authority/32UC,"Performance, Governance & Commissioning",Agency Staff,19/03/2024,30031694,720.00 ,The One Group
East Lindsey District Council,http://statistics.data.gov.uk/id/local-authority/32UC,"Performance, Governance & Commissioning",Agency Staff,19/03/2024,30031695,336.00 ,The One Group
East Lindsey District Council,http://statistics.data.gov.uk/id/local-authority/32UC,"Performance, Governance & Commissioning",Grants and Contributions to Outside Bodies - No Service Received,19/03/2024,30031397,550.00 ,North Thoresby Women's Institute
East Lindsey District Council,http://statistics.data.gov.uk/id/local-authority/32UC,"Performance, Governance & Commissioning",Grants and Contributions to Outside Bodies - No Service Received,19/03/2024,30031601,400.00 ,Hundleby Parish Council
East Lindsey District Council,http://statistics.data.gov.uk/id/local-authority/32UC,"Performance, Governance & Commissioning",Grants and Contributions to Outside Bodies - No Service Received,19/03/2024,30031666,947.36 ,Louth Air Training Corps
East Lindsey District Council,http://statistics.data.gov.uk/id/local-authority/32UC,"Performance, Governance & Commissioning",Grants and Contributions to Outside Bodies - No Service Received,19/03/2024,30031711,400.00 ,Minting and District Garden Club
East Lindsey District Council,http://statistics.data.gov.uk/id/local-authority/32UC,"Performance, Governance & Commissioning",Rent Payments,19/03/2024,30031888,262.50 ,Ludford Village Hall
East Lindsey District Council,http://statistics.data.gov.uk/id/local-authority/32UC,Property,Buildings Maintenance - Programmed,19/03/2024,30031263,350.00 ,Airco Refrigeration Air Conditioning Ltd
East Lindsey District Council,http://statistics.data.gov.uk/id/local-authority/32UC,Property,Buildings Maintenance - Programmed,19/03/2024,30031638,355.00 ,Lincolnshire Roller Shutters Ltd
East Lindsey District Council,http://statistics.data.gov.uk/id/local-authority/32UC,Property,Buildings Maintenance - Programmed,19/03/2024,30031709,250.00 ,Lincolnshire Roller Shutters Ltd
East Lindsey District Council,http://statistics.data.gov.uk/id/local-authority/32UC,Property,Buildings Maintenance - Responsive,19/03/2024,30031691,742.48 ,North Lincs Engineering Ltd
East Lindsey District Council,http://statistics.data.gov.uk/id/local-authority/32UC,Property,Water and Sewerage Charges,19/03/2024,30031745,"3,867.83 ",Wave Anglian Water Business National Ltd
East Lindsey District Council,http://statistics.data.gov.uk/id/local-authority/32UC,Property,Water and Sewerage Charges,19/03/2024,30031762,380.94 ,Wave Anglian Water Business National Ltd
East Lindsey District Council,http://statistics.data.gov.uk/id/local-authority/32UC,Property,Water and Sewerage Charges,19/03/2024,30031773,279.35 ,Wave Anglian Water Business National Ltd
East Lindsey District Council,http://statistics.data.gov.uk/id/local-authority/32UC,Property,Works to Buildings (Main Contractor),19/03/2024,30031236,"23,179.66 ",Pumping Solutions (UK) Limited
East Lindsey District Council,http://statistics.data.gov.uk/id/local-authority/32UC,Public Protection,Other Miscellaneous Expenses,19/03/2024,30031795,"2,332.51 ",Public Sector Partnership Services Ltd
East Lindsey District Council,http://statistics.data.gov.uk/id/local-authority/32UC,Service Manager - Affordable & Accessible Homes-Housing,Works to Buildings (Main Contractor),19/03/2024,30031678,482.00 ,GF Design Services
East Lindsey District Council,http://statistics.data.gov.uk/id/local-authority/32UC,Service Manager - Affordable & Accessible Homes-Housing,Works to Buildings (Main Contractor),19/03/2024,30031679,"6,677.94 ",3MS Gold Services Ltd
East Lindsey District Council,http://statistics.data.gov.uk/id/local-authority/32UC,Service Manager - Affordable & Accessible Homes-Housing,Works to Buildings (Main Contractor),19/03/2024,30031903,"1,750.00 ",GF Design Services
East Lindsey District Council,http://statistics.data.gov.uk/id/local-authority/32UC,Service Manager - Affordable & Accessible Homes-Housing,Works to Buildings (Main Contractor),19/03/2024,30031904,"1,250.00 ",GF Design Services
East Lindsey District Council,http://statistics.data.gov.uk/id/local-authority/32UC,Waste,Agency Staff,19/03/2024,30031741,"5,213.27 ",Red Rock Partnership Ltd
East Lindsey District Council,http://statistics.data.gov.uk/id/local-authority/32UC,Waste,Clothing Uniforms And Laundry,19/03/2024,30031281,237.96 ,Johnsons Workwear
East Lindsey District Council,http://statistics.data.gov.uk/id/local-authority/32UC,Waste,Fuel and Oil,19/03/2024,30031136,"19,155.20 ",Rix Petroleum
East Lindsey District Council,http://statistics.data.gov.uk/id/local-authority/32UC,Waste,PSPS Non-Base Contract Costs,19/03/2024,30031680,"22,373.38 ",Public Sector Partnership Services Ltd
East Lindsey District Council,http://statistics.data.gov.uk/id/local-authority/32UC,Waste,Purchase of Software Licences (Intangible),19/03/2024,30030448,"1,535.31 ",Bartec Municipal Technologies Limited
East Lindsey District Council,http://statistics.data.gov.uk/id/local-authority/32UC,Waste,Workshop Parts,19/03/2024,30031343,"4,755.50 ",SDA Fleet Services Ltd
East Lindsey District Council,http://statistics.data.gov.uk/id/local-authority/32UC,Waste,Workshop Parts,19/03/2024,30031642,"6,296.54 ",Sharmans of Louth
East Lindsey District Council,http://statistics.data.gov.uk/id/local-authority/32UC,AD Capital - Strategic Projects,Works to Buildings (Main Contractor),21/03/2024,30031223,"6,375.36 ",ISG Construction Ltd
East Lindsey District Council,http://statistics.data.gov.uk/id/local-authority/32UC,AD Chief Finance Officer,Postages,21/03/2024,30031445,790.00 ,Royal Mail Group Ltd
East Lindsey District Council,http://statistics.data.gov.uk/id/local-authority/32UC,AD Housing & Wellbeing,Computer Software Purchase,21/03/2024,30031530,900.00 ,Housing Partners Limited
East Lindsey District Council,http://statistics.data.gov.uk/id/local-authority/32UC,AD Housing & Wellbeing,Other Miscellaneous Expenses,21/03/2024,30031810,256.00 ,Waste Away Clearance Service
East Lindsey District Council,http://statistics.data.gov.uk/id/local-authority/32UC,AD Leisure & Culture,Buildings Maintenance - Programmed,21/03/2024,30031962,650.00 ,Lincolnshire Roller Shutters Ltd
East Lindsey District Council,http://statistics.data.gov.uk/id/local-authority/32UC,AD Leisure & Culture,Buildings Maintenance - Programmed,21/03/2024,30031963,360.00 ,Lincolnshire Roller Shutters Ltd
East Lindsey District Council,http://statistics.data.gov.uk/id/local-authority/32UC,AD Leisure & Culture,Buildings Maintenance - Responsive,21/03/2024,30031780,"1,490.00 ",Safe Sound Security Systems Links Ltd
East Lindsey District Council,http://statistics.data.gov.uk/id/local-authority/32UC,Housing & Homelessness,Computer Software Purchase,21/03/2024,30031530,900.00 ,Housing Partners Limited
East Lindsey District Council,http://statistics.data.gov.uk/id/local-authority/32UC,Housing & Homelessness,Other Miscellaneous Expenses,21/03/2024,30031810,256.00 ,Waste Away Clearance Service
East Lindsey District Council,http://statistics.data.gov.uk/id/local-authority/32UC,Neighbourhoods,Materials and Consumables,21/03/2024,30031722,501.30 ,Eastern Shires Purchasing Organisation
East Lindsey District Council,http://statistics.data.gov.uk/id/local-authority/32UC,Property,Buildings Maintenance - Programmed,21/03/2024,30031476,"1,615.17 ",Freedom Network Solutions
East Lindsey District Council,http://statistics.data.gov.uk/id/local-authority/32UC,Property,Buildings Maintenance - Responsive,21/03/2024,30031911,388.65 ,North Lincs Engineering Ltd
East Lindsey District Council,http://statistics.data.gov.uk/id/local-authority/32UC,Property,Professional Fees,21/03/2024,30031987,"1,250.00 ",Banks Long and Co Ltd
East Lindsey District Council,http://statistics.data.gov.uk/id/local-authority/32UC,Waste,External Printing and Design Costs,21/03/2024,30031641,"10,374.28 ",Systematic Print Management Ltd
East Lindsey District Council,http://statistics.data.gov.uk/id/local-authority/32UC,Waste,Workshop Parts,21/03/2024,30031162,478.02 ,Waste Parts UK Ltd
East Lindsey District Council,http://statistics.data.gov.uk/id/local-authority/32UC,Waste,Workshop Parts,21/03/2024,30031224,834.63 ,Dennis Eagle Ltd
East Lindsey District Council,http://statistics.data.gov.uk/id/local-authority/32UC,Waste,Workshop Parts,21/03/2024,30031417,420.00 ,M E Autoparts Limited
East Lindsey District Council,http://statistics.data.gov.uk/id/local-authority/32UC,Waste,Workshop Parts,21/03/2024,30031473,210.00 ,M J Windscreens Ltd
East Lindsey District Council,http://statistics.data.gov.uk/id/local-authority/32UC,Waste,Workshop Parts,21/03/2024,30031474,375.00 ,M J Windscreens Ltd
East Lindsey District Council,http://statistics.data.gov.uk/id/local-authority/32UC,AD Capital - Regulation,Agency Staff,26/03/2024,30032045,"4,594.70 ",BRG Interim Solutions Ltd
East Lindsey District Council,http://statistics.data.gov.uk/id/local-authority/32UC,AD Capital - Strategic Growth and Development,Grants and Contributions to Outside Bodies - No Service Received,26/03/2024,30031835,"43,834.76 ",South Holland District Council
East Lindsey District Council,http://statistics.data.gov.uk/id/local-authority/32UC,AD Capital - Strategic Growth and Development,Grants and Contributions to Outside Bodies - No Service Received,26/03/2024,30031961,"28,875.92 ",NBV Enterprise Solutions Limited
East Lindsey District Council,http://statistics.data.gov.uk/id/local-authority/32UC,AD Capital - Strategic Growth and Development,Grants and Contributions to Outside Bodies - No Service Received,26/03/2024,30032043,"5,014.33 ",High Toynton PCC
East Lindsey District Council,http://statistics.data.gov.uk/id/local-authority/32UC,AD Capital - Strategic Growth and Development,Grants and Contributions to Outside Bodies - No Service Received,26/03/2024,30032044,"15,650.48 ",Lincolnshire Chamber of Commerce and
East Lindsey District Council,http://statistics.data.gov.uk/id/local-authority/32UC,AD Capital - Strategic Growth and Development,Grants and Contributions to Outside Bodies - No Service Received,26/03/2024,30032105,"10,685.60 ",Lincolnshire Community Foundation
East Lindsey District Council,http://statistics.data.gov.uk/id/local-authority/32UC,AD Capital - Strategic Growth and Development,"Purchase of Plant, Machinery and Equipment",26/03/2024,30031961,"15,000.00 ",NBV Enterprise Solutions Limited
East Lindsey District Council,http://statistics.data.gov.uk/id/local-authority/32UC,AD Capital - Strategic Projects,Professional and Contractors Fees,26/03/2024,30031495,"2,959.80 ",Browne Jacobson LLP
East Lindsey District Council,http://statistics.data.gov.uk/id/local-authority/32UC,AD Capital - Strategic Projects,Professional and Contractors Fees,26/03/2024,30031626,"2,905.00 ",The Oyster Partnership Ltd
East Lindsey District Council,http://statistics.data.gov.uk/id/local-authority/32UC,AD Capital - Strategic Projects,Professional and Contractors Fees,26/03/2024,30031655,"2,324.00 ",The Oyster Partnership Ltd
East Lindsey District Council,http://statistics.data.gov.uk/id/local-authority/32UC,AD Capital - Strategic Projects,Professional Fees,26/03/2024,30031827,"41,657.49 ",Alliance Leisure Services Limited
East Lindsey District Council,http://statistics.data.gov.uk/id/local-authority/32UC,AD Capital - Strategic Projects,Works to Buildings (Sub Contractors),26/03/2024,30031872,"8,007.74 ",Lincolnshire County Council Highways
East Lindsey District Council,http://statistics.data.gov.uk/id/local-authority/32UC,AD Chief Finance Officer,Non-Ringfenced Government Grants - S31 Grant,26/03/2024,30031897,"1,448,432.00 ",Department for levelling Up Housing & Communities
East Lindsey District Council,http://statistics.data.gov.uk/id/local-authority/32UC,AD Chief Finance Officer,Vehicle Hire,26/03/2024,30031225,544.36 ,Tjs Self Drive
East Lindsey District Council,http://statistics.data.gov.uk/id/local-authority/32UC,AD Housing & Wellbeing,Grants and Contributions to Outside Bodies - No Service Received,26/03/2024,30031804,"5,000.00 ",Mablethorpe and Sutton on Sea Coastal Community Team
East Lindsey District Council,http://statistics.data.gov.uk/id/local-authority/32UC,AD Housing & Wellbeing,Other Miscellaneous Expenses,26/03/2024,30032100,420.00 ,Salvation Army Central Trust
East Lindsey District Council,http://statistics.data.gov.uk/id/local-authority/32UC,AD Housing & Wellbeing,Other Miscellaneous Expenses,26/03/2024,30032101,490.00 ,Salvation Army Central Trust
East Lindsey District Council,http://statistics.data.gov.uk/id/local-authority/32UC,AD Leisure & Culture,Buildings Maintenance - Programmed,26/03/2024,30031378,"9,227.00 ",Fred Margarson Ltd
East Lindsey District Council,http://statistics.data.gov.uk/id/local-authority/32UC,AD Leisure & Culture,Buildings Maintenance - Programmed,26/03/2024,30032030,"1,605.62 ",TVF UK Limited
East Lindsey District Council,http://statistics.data.gov.uk/id/local-authority/32UC,AD Leisure & Culture,Buildings Maintenance - Programmed,26/03/2024,30032106,342.67 ,TVF UK Limited
East Lindsey District Council,http://statistics.data.gov.uk/id/local-authority/32UC,Building Control,Agency Staff,26/03/2024,30032045,"2,297.35 ",BRG Interim Solutions Ltd
East Lindsey District Council,http://statistics.data.gov.uk/id/local-authority/32UC,Climate Change and Environment,Advertising - Legal And Public,26/03/2024,30032049,"10,250.00 ",Technical Converters Ltd
East Lindsey District Council,http://statistics.data.gov.uk/id/local-authority/32UC,Climate Change and Environment,Professional Fees,26/03/2024,30032031,"6,215.00 ",Everwarm Ltd
East Lindsey District Council,http://statistics.data.gov.uk/id/local-authority/32UC,Development Control,Advertising - Legal And Public,26/03/2024,30031415,257.76 ,Reach Plc Publishing Ltd
East Lindsey District Council,http://statistics.data.gov.uk/id/local-authority/32UC,Development Control,Professional and Contractors Fees,26/03/2024,30031344,892.50 ,Acoustic Associates (Peterborough)
East Lindsey District Council,http://statistics.data.gov.uk/id/local-authority/32UC,Development Control,Professional and Contractors Fees,26/03/2024,30031871,"10,000.00 ",CMS Cameron McKenna Nabarro Olswang LLP
East Lindsey District Council,http://statistics.data.gov.uk/id/local-authority/32UC,Development Control,Professional and Contractors Fees,26/03/2024,30032076,"4,166.67 ",South Holland District Council
East Lindsey District Council,http://statistics.data.gov.uk/id/local-authority/32UC,Economic Growth Service Manager (Place),Other Miscellaneous Expenses,26/03/2024,30031292,"8,750.00 ",Huq Industries Limited
East Lindsey District Council,http://statistics.data.gov.uk/id/local-authority/32UC,Economic Growth Service Manager (Place),Other Miscellaneous Expenses,26/03/2024,30031858,"4,760.00 ",Ruddocks
East Lindsey District Council,http://statistics.data.gov.uk/id/local-authority/32UC,Enforcement,Demolition/Site Clearance Costs,26/03/2024,30032116,"5,003.22 ",Invest East Lindsey Ltd
East Lindsey District Council,http://statistics.data.gov.uk/id/local-authority/32UC,Environmental Health,Other agencies,26/03/2024,30031485,"1,100.00 ",Kingdom Local Authority Support
East Lindsey District Council,http://statistics.data.gov.uk/id/local-authority/32UC,Environmental Health,Other agencies,26/03/2024,30031681,"20,340.00 ",Kingdom Local Authority Support
East Lindsey District Council,http://statistics.data.gov.uk/id/local-authority/32UC,Environmental Health,Professional and Contractors Fees,26/03/2024,30031283,"1,275.00 ",G2 Recruitment Solutions
East Lindsey District Council,http://statistics.data.gov.uk/id/local-authority/32UC,Growth Relationships & Growth Promotions,Legal Fees,26/03/2024,30031860,519.30 ,Freeths LLP
East Lindsey District Council,http://statistics.data.gov.uk/id/local-authority/32UC,Growth Relationships & Growth Promotions,Other Miscellaneous Expenses,26/03/2024,30031292,"8,750.00 ",Huq Industries Limited
East Lindsey District Council,http://statistics.data.gov.uk/id/local-authority/32UC,Growth Relationships & Growth Promotions,Other Miscellaneous Expenses,26/03/2024,30031533,565.00 ,Bauer Media Group
East Lindsey District Council,http://statistics.data.gov.uk/id/local-authority/32UC,Growth Relationships & Growth Promotions,Other Miscellaneous Expenses,26/03/2024,30031858,"4,760.00 ",Ruddocks
East Lindsey District Council,http://statistics.data.gov.uk/id/local-authority/32UC,Growth Relationships & Growth Promotions,Other Miscellaneous Expenses,26/03/2024,30031896,300.00 ,County Life Ltd
East Lindsey District Council,http://statistics.data.gov.uk/id/local-authority/32UC,Healthy Living Services Manager,Grants and Contributions to Outside Bodies - No Service Received,26/03/2024,30031804,"5,000.00 ",Mablethorpe and Sutton on Sea Coastal Community Team
East Lindsey District Council,http://statistics.data.gov.uk/id/local-authority/32UC,Housing & Homelessness,Other Miscellaneous Expenses,26/03/2024,30032100,420.00 ,Salvation Army Central Trust
East Lindsey District Council,http://statistics.data.gov.uk/id/local-authority/32UC,Housing & Homelessness,Other Miscellaneous Expenses,26/03/2024,30032101,490.00 ,Salvation Army Central Trust
East Lindsey District Council,http://statistics.data.gov.uk/id/local-authority/32UC,Information Technology,Computer Hardware Maintenance,26/03/2024,30031291,"3,400.00 ",�Personal Information Redacted�
East Lindsey District Council,http://statistics.data.gov.uk/id/local-authority/32UC,Information Technology,Computer Software Licence Costs,26/03/2024,30031965,"5,180.00 ",RA Information Systems
East Lindsey District Council,http://statistics.data.gov.uk/id/local-authority/32UC,Information Technology,Internet Broadband Payments,26/03/2024,30031403,119.85 ,Multidata
East Lindsey District Council,http://statistics.data.gov.uk/id/local-authority/32UC,Neighbourhoods,Agency Staff,26/03/2024,30032098,"3,896.91 ",The Workshop (Wisbech) Ltd
East Lindsey District Council,http://statistics.data.gov.uk/id/local-authority/32UC,Neighbourhoods,Clothing Uniforms And Laundry,26/03/2024,30031284,841.00 ,SMI Int Group
East Lindsey District Council,http://statistics.data.gov.uk/id/local-authority/32UC,Neighbourhoods,Clothing Uniforms And Laundry,26/03/2024,30031400,297.16 ,SMI Int Group
East Lindsey District Council,http://statistics.data.gov.uk/id/local-authority/32UC,Neighbourhoods,Grounds Maintenance Contract (External),26/03/2024,30031595,"12,105.09 ",Glendale Grounds Management Limited
East Lindsey District Council,http://statistics.data.gov.uk/id/local-authority/32UC,Neighbourhoods,Materials and Consumables,26/03/2024,30031733,303.25 ,Eastern Shires Purchasing Organisation
East Lindsey District Council,http://statistics.data.gov.uk/id/local-authority/32UC,Organisation Improvement & Development,Staff Training Expenses (Non-Payroll),26/03/2024,30031440,800.00 ,Stand2
East Lindsey District Council,http://statistics.data.gov.uk/id/local-authority/32UC,Organisation Improvement & Development,Staff Training Expenses (Non-Payroll),26/03/2024,30031444,800.00 ,Imagine Public Services Ltd
East Lindsey District Council,http://statistics.data.gov.uk/id/local-authority/32UC,Organisation Improvement & Development,Staff Training Expenses (Non-Payroll),26/03/2024,30032097,470.00 ,Bell First Aid Training
East Lindsey District Council,http://statistics.data.gov.uk/id/local-authority/32UC,"Performance, Governance & Commissioning",Agency Staff,26/03/2024,30032119,888.00 ,The One Group
East Lindsey District Council,http://statistics.data.gov.uk/id/local-authority/32UC,"Performance, Governance & Commissioning",Agency Staff,26/03/2024,30032120,876.00 ,The One Group
East Lindsey District Council,http://statistics.data.gov.uk/id/local-authority/32UC,"Performance, Governance & Commissioning",Grants and Contributions to Outside Bodies - No Service Received,26/03/2024,30032021,660.00 ,Chapel St Leonard Parish Council
East Lindsey District Council,http://statistics.data.gov.uk/id/local-authority/32UC,"Performance, Governance & Commissioning",Grants and Contributions to Outside Bodies - No Service Received,26/03/2024,30032022,550.00 ,anderby Parish Council
East Lindsey District Council,http://statistics.data.gov.uk/id/local-authority/32UC,"Performance, Governance & Commissioning",Grants and Contributions to Outside Bodies - No Service Received,26/03/2024,30032081,500.00 ,Addlethorpe Parish Council
East Lindsey District Council,http://statistics.data.gov.uk/id/local-authority/32UC,"Performance, Governance & Commissioning",Grants and Contributions to Outside Bodies - No Service Received,26/03/2024,30032102,380.00 ,PCC Bucknall Fabric Fund
East Lindsey District Council,http://statistics.data.gov.uk/id/local-authority/32UC,Planning Policy,Professional and Contractors Fees,26/03/2024,30031778,"5,647.50 ",Create Consulting Engineers Ltd
East Lindsey District Council,http://statistics.data.gov.uk/id/local-authority/32UC,Planning Policy,Professional and Contractors Fees,26/03/2024,30031779,"5,935.00 ",Create Consulting Engineers Ltd
East Lindsey District Council,http://statistics.data.gov.uk/id/local-authority/32UC,Property,Buildings Maintenance - Programmed,26/03/2024,30031266,717.50 ,JLA Fire & Security Limited
East Lindsey District Council,http://statistics.data.gov.uk/id/local-authority/32UC,Property,Buildings Maintenance - Programmed,26/03/2024,30031469,845.00 ,Riello UPS Ltd
East Lindsey District Council,http://statistics.data.gov.uk/id/local-authority/32UC,Property,Buildings Maintenance - Responsive,26/03/2024,30031468,297.16 ,EJ Parker Technical Services (Central) Limited
East Lindsey District Council,http://statistics.data.gov.uk/id/local-authority/32UC,Property,Buildings Maintenance - Responsive,26/03/2024,30031475,"1,851.21 ",Freedom Network Solutions
East Lindsey District Council,http://statistics.data.gov.uk/id/local-authority/32UC,Property,Grounds Maintenance Contract (External),26/03/2024,30031595,"12,105.09 ",Glendale Grounds Management Limited
East Lindsey District Council,http://statistics.data.gov.uk/id/local-authority/32UC,Property,Internet Broadband Payments,26/03/2024,30031403,"1,213.98 ",Multidata
East Lindsey District Council,http://statistics.data.gov.uk/id/local-authority/32UC,Property,Other agencies,26/03/2024,30032115,"19,199.55 ",Magna Vitae
East Lindsey District Council,http://statistics.data.gov.uk/id/local-authority/32UC,Property,Professional and Contractors Fees,26/03/2024,30031300,"2,176.73 ",Kings Armoured Security Services Ltd
East Lindsey District Council,http://statistics.data.gov.uk/id/local-authority/32UC,Property,Professional and Contractors Fees,26/03/2024,30031390,"6,286.98 ",International Parking Systems UK Grp Ltd
East Lindsey District Council,http://statistics.data.gov.uk/id/local-authority/32UC,Property,Professional and Contractors Fees,26/03/2024,30031456,543.51 ,Chipside Ltd
East Lindsey District Council,http://statistics.data.gov.uk/id/local-authority/32UC,Property,Professional and Contractors Fees,26/03/2024,30031881,223.74 ,Sid Dennis and Sons Ltd
East Lindsey District Council,http://statistics.data.gov.uk/id/local-authority/32UC,Property,Telephones,26/03/2024,30031403,50.34 ,Multidata
East Lindsey District Council,http://statistics.data.gov.uk/id/local-authority/32UC,Public Protection,Grants and Contributions - Where a Service is Received,26/03/2024,30031586,"271,708.18 ",Boston Borough Council
East Lindsey District Council,http://statistics.data.gov.uk/id/local-authority/32UC,Public Protection,Professional and Contractors Fees,26/03/2024,30031403,119.85 ,Multidata
East Lindsey District Council,http://statistics.data.gov.uk/id/local-authority/32UC,Service Manager - Affordable & Accessible Homes-Housing,Works to Buildings (Main Contractor),26/03/2024,30031986,"7,781.15 ",Belton Construction
East Lindsey District Council,http://statistics.data.gov.uk/id/local-authority/32UC,Service Manager - Affordable & Accessible Homes-Housing,Works to Buildings (Main Contractor),26/03/2024,30032010,"1,250.00 ",GF Design Services
East Lindsey District Council,http://statistics.data.gov.uk/id/local-authority/32UC,Waste,Computer Hardware Maintenance,26/03/2024,30031403,119.85 ,Multidata
East Lindsey District Council,http://statistics.data.gov.uk/id/local-authority/32UC,Waste,Fuel and Oil,26/03/2024,30031520,"4,060.54 ",Allstar Business Solutions Ltd
East Lindsey District Council,http://statistics.data.gov.uk/id/local-authority/32UC,Waste,Internet Broadband Payments,26/03/2024,30031403,81.99 ,Multidata
East Lindsey District Council,http://statistics.data.gov.uk/id/local-authority/32UC,Waste,Materials and Consumables,26/03/2024,30031289,275.00 ,Bartec Municipal Technologies Limited
East Lindsey District Council,http://statistics.data.gov.uk/id/local-authority/32UC,Waste,Materials and Consumables,26/03/2024,30031361,"19,236.00 ",ESE Ltd
East Lindsey District Council,http://statistics.data.gov.uk/id/local-authority/32UC,Waste,Materials and Consumables,26/03/2024,30031362,"2,078.50 ",ESE Ltd
East Lindsey District Council,http://statistics.data.gov.uk/id/local-authority/32UC,Waste,Materials and Consumables,26/03/2024,30031644,446.75 ,CCS Media Limited
East Lindsey District Council,http://statistics.data.gov.uk/id/local-authority/32UC,Waste,Materials and Consumables,26/03/2024,30031972,446.75 ,Calibration & Consultancy Services (UK) Ltd
East Lindsey District Council,http://statistics.data.gov.uk/id/local-authority/32UC,Waste,Other Private Contractors,26/03/2024,30031466,233.34 ,Glass Recycling UK Ltd
East Lindsey District Council,http://statistics.data.gov.uk/id/local-authority/32UC,Waste,Telephones,26/03/2024,30031403,50.34 ,Multidata
East Lindsey District Council,http://statistics.data.gov.uk/id/local-authority/32UC,Waste,Workshop Parts,26/03/2024,30031368,"1,450.00 ",Ford and Slater DAF (Lincoln Newark)
East Lindsey District Council,http://statistics.data.gov.uk/id/local-authority/32UC,Waste,Workshop Parts,26/03/2024,30031369,300.00 ,Ford and Slater DAF (Lincoln Newark)
East Lindsey District Council,http://statistics.data.gov.uk/id/local-authority/32UC,Waste,Workshop Parts,26/03/2024,30031382,469.61 ,Partic Motor Spares Ltd
East Lindsey District Council,http://statistics.data.gov.uk/id/local-authority/32UC,Waste,Workshop Parts,26/03/2024,30031392,670.47 ,Waste Parts UK Ltd
East Lindsey District Council,http://statistics.data.gov.uk/id/local-authority/32UC,Waste,Workshop Parts,26/03/2024,30031399,210.00 ,Ford and Slater DAF (Lincoln Newark)
East Lindsey District Council,http://statistics.data.gov.uk/id/local-authority/32UC,Waste,Workshop Parts,26/03/2024,30031421,"2,660.00 ",Partic Motor Spares Ltd
East Lindsey District Council,http://statistics.data.gov.uk/id/local-authority/32UC,Waste,Workshop Parts,26/03/2024,30031422,389.20 ,Partic Motor Spares Ltd
East Lindsey District Council,http://statistics.data.gov.uk/id/local-authority/32UC,Waste,Workshop Parts,26/03/2024,30032056,"2,451.55 ",Chandlers (Farm Equipment) Ltd
East Lindsey District Council,http://statistics.data.gov.uk/id/local-authority/32UC,Waste,Workshop Parts,26/03/2024,30032057,"1,235.30 ",Chandlers (Farm Equipment) Ltd
East Lindsey District Council,http://statistics.data.gov.uk/id/local-authority/32UC,AD Capital - Strategic Growth and Developments,Purchase of Buildings,27/03/2024,30032268,"1,204,125.00 ",Howes Percival
East Lindsey District Council,http://statistics.data.gov.uk/id/local-authority/32UC,AD Capital - Regulation,Agency Staff,28/03/2024,30032190,"5,319.90 ",BRG Interim Solutions Ltd
East Lindsey District Council,http://statistics.data.gov.uk/id/local-authority/32UC,AD Capital - Regulation,Land Charges Inspection Fees,28/03/2024,30032095,"3,512.47 ",Lincolnshire County Council
East Lindsey District Council,http://statistics.data.gov.uk/id/local-authority/32UC,AD Capital - Regulation,Land Charges Inspection Fees,28/03/2024,30032096,"2,825.78 ",Lincolnshire County Council
East Lindsey District Council,http://statistics.data.gov.uk/id/local-authority/32UC,AD Capital - Strategic Growth and Developments,Professional Fees,28/03/2024,30032210,"24,083.00 ",South Holland District Council
East Lindsey District Council,http://statistics.data.gov.uk/id/local-authority/32UC,AD Chief Finance Officer,Banking Charges,28/03/2024,30032235,504.11 ,BGC
East Lindsey District Council,http://statistics.data.gov.uk/id/local-authority/32UC,AD Chief Finance Officer,Buildings Maintenance - Programmed,28/03/2024,30031311,"7,286.74 ",Second Element Limited
East Lindsey District Council,http://statistics.data.gov.uk/id/local-authority/32UC,AD Chief Finance Officer,Shared Management,28/03/2024,30032228,"408,231.54 ",Boston Borough Council
East Lindsey District Council,http://statistics.data.gov.uk/id/local-authority/32UC,AD Housing & Wellbeing,Bed and Breakfast Accommodation (Homelessness Service),28/03/2024,30032073,"1,000.00 ",Lakeside Hotel
East Lindsey District Council,http://statistics.data.gov.uk/id/local-authority/32UC,AD Housing & Wellbeing,Bed and Breakfast Accommodation (Homelessness Service),28/03/2024,30032074,825.00 ,Lakeside Hotel
East Lindsey District Council,http://statistics.data.gov.uk/id/local-authority/32UC,AD Housing & Wellbeing,Bed and Breakfast Accommodation (Homelessness Service),28/03/2024,30032075,468.00 ,Lakeside Hotel
East Lindsey District Council,http://statistics.data.gov.uk/id/local-authority/32UC,AD Housing & Wellbeing,Bed and Breakfast Accommodation (Homelessness Service),28/03/2024,30032077,"2,380.00 ",Lakeside Hotel
East Lindsey District Council,http://statistics.data.gov.uk/id/local-authority/32UC,AD Housing & Wellbeing,Furniture and Equipment,28/03/2024,30032221,375.00 ,Woodlandz Furnishings GY Ltd
East Lindsey District Council,http://statistics.data.gov.uk/id/local-authority/32UC,AD Housing & Wellbeing,Grants and Contributions to Outside Bodies - No Service Received,28/03/2024,30032011,"5,000.00 ",Citizens Advice Lindsey
East Lindsey District Council,http://statistics.data.gov.uk/id/local-authority/32UC,AD Housing & Wellbeing,Grants and Contributions to Outside Bodies - No Service Received,28/03/2024,30032015,368.33 ,�Personal Information Redacted�
East Lindsey District Council,http://statistics.data.gov.uk/id/local-authority/32UC,AD Housing & Wellbeing,Grants and Contributions to Outside Bodies - No Service Received,28/03/2024,30032193,"1,000.00 ",Alford Hub
East Lindsey District Council,http://statistics.data.gov.uk/id/local-authority/32UC,AD Leisure & Culture,Other Miscellaneous Expenses,28/03/2024,30031418,"2,516.85 ",Keep Britain Tidy
East Lindsey District Council,http://statistics.data.gov.uk/id/local-authority/32UC,Building Control,Agency Staff,28/03/2024,30032190,"2,659.95 ",BRG Interim Solutions Ltd
East Lindsey District Council,http://statistics.data.gov.uk/id/local-authority/32UC,Climate Change and Environment,Materials and Consumables,28/03/2024,30031438,250.92 ,W. Crowder & Sons Ltd
East Lindsey District Council,http://statistics.data.gov.uk/id/local-authority/32UC,Climate Change and Environment,Works to Buildings (Main Contractor),28/03/2024,30032032,"17,760.00 ",Everwarm Ltd
East Lindsey District Council,http://statistics.data.gov.uk/id/local-authority/32UC,DC Revenues & Benefits,Professional and Contractors Fees,28/03/2024,30031467,"8,139.22 ",Datatank LTD
East Lindsey District Council,http://statistics.data.gov.uk/id/local-authority/32UC,Environmental Health,Other Miscellaneous Expenses,28/03/2024,30031418,"2,516.85 ",Keep Britain Tidy
East Lindsey District Council,http://statistics.data.gov.uk/id/local-authority/32UC,Growth Relationships & Growth Promotions,Legal Fees,28/03/2024,30032130,309.40 ,Freeths LLP
East Lindsey District Council,http://statistics.data.gov.uk/id/local-authority/32UC,Growth Relationships & Growth Promotions,Professional and Contractors Fees,28/03/2024,30030712,"11,900.00 ",Tom Fleming Creative Consultancy
East Lindsey District Council,http://statistics.data.gov.uk/id/local-authority/32UC,Healthy Living Services Manager,Grants and Contributions to Outside Bodies - No Service Received,28/03/2024,30032011,"5,000.00 ",Citizens Advice Lindsey
East Lindsey District Council,http://statistics.data.gov.uk/id/local-authority/32UC,Healthy Living Services Manager,Grants and Contributions to Outside Bodies - No Service Received,28/03/2024,30032193,"1,000.00 ",Alford Hub
East Lindsey District Council,http://statistics.data.gov.uk/id/local-authority/32UC,Housing & Homelessness,Bed and Breakfast Accommodation (Homelessness Service),28/03/2024,30032073,"1,000.00 ",Lakeside Hotel
East Lindsey District Council,http://statistics.data.gov.uk/id/local-authority/32UC,Housing & Homelessness,Bed and Breakfast Accommodation (Homelessness Service),28/03/2024,30032074,825.00 ,Lakeside Hotel
East Lindsey District Council,http://statistics.data.gov.uk/id/local-authority/32UC,Housing & Homelessness,Bed and Breakfast Accommodation (Homelessness Service),28/03/2024,30032075,468.00 ,Lakeside Hotel
East Lindsey District Council,http://statistics.data.gov.uk/id/local-authority/32UC,Housing & Homelessness,Bed and Breakfast Accommodation (Homelessness Service),28/03/2024,30032077,"2,380.00 ",Lakeside Hotel
East Lindsey District Council,http://statistics.data.gov.uk/id/local-authority/32UC,Housing & Homelessness,Furniture and Equipment,28/03/2024,30032221,375.00 ,Woodlandz Furnishings GY Ltd
East Lindsey District Council,http://statistics.data.gov.uk/id/local-authority/32UC,Housing & Homelessness,Grants and Contributions to Outside Bodies - No Service Received,28/03/2024,30032015,368.33 ,�Personal Information Redacted�
East Lindsey District Council,http://statistics.data.gov.uk/id/local-authority/32UC,Information Technology,Computer Software Licence Costs,28/03/2024,30032046,"32,341.26 ",GGP Systems
East Lindsey District Council,http://statistics.data.gov.uk/id/local-authority/32UC,Neighbourhoods,Agency Staff,28/03/2024,30032247,"4,144.97 ",The Workshop (Wisbech) Ltd
East Lindsey District Council,http://statistics.data.gov.uk/id/local-authority/32UC,Neighbourhoods,Materials and Consumables,28/03/2024,30032255,"1,357.87 ",Gelder Ltd
East Lindsey District Council,http://statistics.data.gov.uk/id/local-authority/32UC,Organisation Improvement & Development,Staff Training Expenses (Non-Payroll),28/03/2024,30031419,"8,300.00 ",Stand2
East Lindsey District Council,http://statistics.data.gov.uk/id/local-authority/32UC,Organisation Improvement & Development,Staff Training Expenses (Non-Payroll),28/03/2024,30031434,250.00 ,Solace Group
East Lindsey District Council,http://statistics.data.gov.uk/id/local-authority/32UC,"Performance, Governance & Commissioning",Grants and Contributions to Outside Bodies - No Service Received,28/03/2024,30031599,"2,000.00 ",Skendleby Playgroup
East Lindsey District Council,http://statistics.data.gov.uk/id/local-authority/32UC,Property,Buildings Maintenance - Responsive,28/03/2024,30032112,291.00 ,Second Element Limited
East Lindsey District Council,http://statistics.data.gov.uk/id/local-authority/32UC,Property,Other Private Contractors,28/03/2024,30032035,"2,315.50 ",GRS Signs Ltd
East Lindsey District Council,http://statistics.data.gov.uk/id/local-authority/32UC,Waste,Agency Staff,28/03/2024,30031423,"1,742.00 ",Questech Recruitment Ltd
East Lindsey District Council,http://statistics.data.gov.uk/id/local-authority/32UC,Waste,Workshop Parts,28/03/2024,30031404,300.98 ,Terberg Matec UK
East Lindsey District Council,http://statistics.data.gov.uk/id/local-authority/32UC,Waste,Workshop Parts,28/03/2024,30031446,252.99 ,Bryan Coupland Ltd
East Lindsey District Council,http://statistics.data.gov.uk/id/local-authority/32UC,Waste,Workshop Parts,28/03/2024,30031562,365.74 ,Dennis Eagle Ltd
East Lindsey District Council,http://statistics.data.gov.uk/id/local-authority/32UC,Waste,Workshop Parts,28/03/2024,30031564,273.53 ,Dennis Eagle Ltd
East Lindsey District Council,http://statistics.data.gov.uk/id/local-authority/32UC,Waste,Workshop Parts,28/03/2024,30032068,"1,653.78 ",N T Shaw of Louth
East Lindsey District Council,http://statistics.data.gov.uk/id/local-authority/32UC,Waste,Workshop Parts,28/03/2024,30032069,254.73 ,N T Shaw of Louth
East Lindsey District Council,http://statistics.data.gov.uk/id/local-authority/32UC,Waste,Workshop Parts,28/03/2024,30032091,228.49 ,Truck Links
